[Event "61st Mongolian-ch Open 2023"]
[Site "Khovd"]
[Date "2023.05.29"]
[Round "10.1"]
[White "Ulziikhishig Khishigbat"]
[Black "Amilal Munkhdalai"]
[Result "1/2-1/2"]
[ECO "D01"]
[WhiteElo "1601"]
[BlackElo "2141"]
[Annotator "TA"]
[PlyCount "114"]
[EventDate "2023.05.22"]
[EventType "tourn"]
[EventCountry "MGL"]
[SourceTitle "playchess.com"]
[Source "ChessBase"]
[SourceQuality "1"]
[TimeControl "40/5400+30:1800+30"]

{[%evp 9,114,-32,-34,-37,-28,-44,-21,-31,-28,-37,-17,-17,-3,0,98,22,37,26,24,36,27,24,25,22,51,54,51,31,24,33,32,20,22,12,9,10,11,21,17,15,18,0,0,0,0,-72,0,-213,-18,-19,-12,-7,-15,-25,-50,-31,-8,-120,-114,-120,-123,-116,-127,-109,0,-108,-107,-109,-104,-97,-109,-108,-102,-81,-77,-142,-75,-134,-112,-135,-89,-98,-95,-133,-134,-123,-116,-624,-623,-540,-518,-2173,-1046,-948,-717,-470,-699,-260,0,0,0,0,0,0,0,0,0]} 1. d4 {[%emt 0:00:03]} Nf6 {[%emt 0:00:03]} 2. Nc3 {[%emt 0:00:06]} d5 {[%emt 0:00:18]} 3. Bg5 {[%emt 0:00:13]} Nbd7 {[%emt 0:00:55]} 4. e3 {[%emt 0:00:30]} e6 {[%emt 0:01:17] [#]} 5. g3 $146 {[%emt 0:00:42]} ({Predecessor:} 5. Bd3 Be7 6. Qf3 c5 7. O-O-O c4 8. Bf1 b5 9. Nce2 Qa5 10. Kb1 b4 11. Ng3 Rb8 12. Bf4 Rb5 13. e4 dxe4 14. Nxe4 {0-1 Terry,R (2504)-Lazavik,D (2465) Speed Chess GP3 blitz 2021 (7)}) 5... h6 {[%emt 0:01:05]} 6. Bxf6 {[%emt 0:00:31] D01: Veresov Opening.} Nxf6 {[%emt 1:29:52]} 7. Bg2 {[%emt 0:00:07]} c5 {[%emt 0:10:07]} 8. Nf3 {[%emt 0:01:19]} b6 {[%emt 0:03:08]} 9. O-O {[%emt 0:00:22][%cal Oe3e4]} Ba6 {[%emt 0:00:12]} 10. Re1 {[%emt 0:00:10]} cxd4 {[%emt 0:00:48]} 11. Qxd4 {[%emt 0:01:33]} Bb7 {[%emt 0:03:20]} (11... Bc4 $11 {keeps the balance.}) 12. Ne5 {[%emt 0:02:55] White is much more active. The black rooks are badly placed.} (12. Qa4+ $1 $16 Qd7 13. Nb5) 12... a6 {[%emt 0:13:58]} 13. e4 {[%emt 0:03:58]} Bc5 {[%emt 0:00:57]} 14. Qa4+ {[%emt 0:01:07]} b5 {[%emt 0:00:05] [#]} 15. Nxb5 {[%emt 0:01:53]} O-O {[%emt 0:00:05] And now ...Qb6 would win.} 16. Nc3 {[%emt 0:00:56]} Qb6 {[%emt 0:00:27]} 17. Nd3 {[%emt 0:00:42]} d4 {[%emt 0:17:38]} 18. Ne2 {[%emt 0:18:01]} Bxe4 {[%emt 0:08:40]} 19. Bxe4 {[%emt 0:02:03]} Nxe4 {[%emt 0:00:03]} 20. Nxc5 {[%emt 0:00:11]} Qxc5 {[%emt 0:37:18]} 21. Qxd4 {[%emt 0:00:29]} Qc6 {[%emt 0:00:07]} (21... Qxc2 22. Rac1 e5 23. Rxc2 $16 (23. Qxe5 Qa4 $16)) 22. Qe3 {[%emt 0:05:52]} Rad8 {[%emt 0:05:05]} (22... Qxc2 $2 23. Nd4 Qxf2+ 24. Qxf2 $18) 23. Nd4 {[%emt 0:58:17]} Rxd4 {[%emt 0:00:08][%mdl 64] Deflection} 24. Qxd4 {[%emt 0:00:02]} Ng5 {[%emt 0:00:07][%cal Be4g5,Bg5h3,Bh3f2][%mdl 32] Strongly threatening ...Nf3+.} 25. Qc3 {[%emt 0:37:38]} (25. Kf1 $5 {[%cal Rd4d3]}) 25... Qb7 {[%emt 0:09:46] aiming for ...Rc8.} 26. Red1 {[%emt 0:10:21]} (26. Qb3 $2 Nf3+ 27. Kg2 (27. Kh1 $2 Qa8 $19) 27... Nxe1+ $19) 26... Rc8 {[%emt 0:02:24]} 27. Qd3 {[%emt 0:03:46]} (27. Qb3 $1 $11 {remains equal.} Nf3+ 28. Kf1 (28. Kh1 Qa8 $17) 28... Nxh2+ 29. Kg1 Nf3+ 30. Kf1 (30. Kh1 $2 Qa8 $19) 30... Nh2+ 31. Kg1 Nf3+ 32. Kf1 (32. Kh1 $2 Qa8 $19) 32... Nh2+) 27... Rc5 {[%emt 0:10:03]} (27... Nf3+ $1 $17 28. Kf1 Nxh2+ 29. Kg1 Nf3+ 30. Kf1 Nh2+ 31. Kg1 Nf3+ 32. Kf1 Ne5) 28. c4 $2 {[%emt 0:11:56]} (28. h4 $11 Nf3+ 29. Kf1) 28... Re5 $2 {[%emt 0:00:28]} ({Black should play} 28... Nh3+ $19 29. Kf1 Rf5) 29. h4 $11 {[%emt 0:01:42]} Nh3+ {[%emt 0:05:31]} 30. Kh2 {[%emt 0:00:01]} Nxf2 {[%emt 0:00:06]} 31. Qc2 {[%emt 0:00:22][%cal Rd1d8]} ({Wrong is} 31. Qd7 $2 Qxb2 32. Qd4 Nxd1+ $19) 31... Nxd1 {[%emt 0:00:51]} 32. Rxd1 {[%emt 0:00:01][%cal Rd1d8][%mdl 4096] Endgame KQR-KQR} f5 $40 {[%emt 0:00:23][%mdl 128] White must now prevent ...Qf3. Black mounts an attack.} (32... g5 $5 {[%cal Rb7f3]} 33. Qf2 Rf5 $11) 33. Rd2 {[%emt 0:00:24]} (33. Qf2 $11) 33... Re1 $17 {[%emt 0:00:53][%csl Gb7][%cal Re1h1]} 34. Rg2 {[%emt 0:00:09]} Qf3 {[%emt 0:01:04] Against Qd3} 35. Qf2 {[%emt 0:03:25]} Qe4 {[%emt 0:01:37]} 36. Qc2 {[%emt 0:00:38]} Qf3 {[%emt 0:00:51]} 37. Qf2 {[%emt 0:00:01]} Qd1 {[%emt 0:00:40][%csl Gd1][%cal Re1h1]} 38. Rg1 {[%emt 0:00:01] Repels Rh1+} Rxg1 {[%emt 0:00:44]} 39. Qxg1 {[%emt 0:00:02] KQ-KQ} Qe2+ {[%emt 0:00:17]} 40. Qg2 {[%emt 0:00:00]} Qxc4 {[%emt 0:00:00]} 41. b3 {[%emt 0:00:30]} Qd3 {[%emt 0:00:41]} 42. Qb2 {[%emt 0:00:59]} (42. Qc6 $142) 42... Qd6 {[%emt 0:35:55]} (42... Kf7 $142 43. h5 Qf3) 43. Qc2 {[%emt 0:00:52]} (43. b4 $142) 43... Kf7 {[%emt 0:03:13]} 44. Qb2 {[%emt 0:04:18]} e5 {[%emt 0:28:09]} (44... g5 $142 45. hxg5 hxg5) 45. b4 {[%emt 0:00:33]} e4 {[%emt 0:01:04][%cal Be5e4,Be4e3][%mdl 32] ...e3 is the strong threat.} 46. b5 {[%emt 0:00:48]} axb5 {[%emt 0:01:04]} 47. Qxb5 {[%emt 0:00:14]} Kf6 {[%emt 0:03:19] ...e3 would be deadly.} 48. a4 $2 {[%emt 0:08:11][%mdl 8192]} (48. Qb2+ $17 Qe5 49. Qb6+ Kf7 50. h5) 48... e3 $1 $19 {[%emt 0:01:13] Hoping for ...Qd2+.} 49. Kh3 {[%emt 0:00:54]} Qe6 {[%emt 0:06:54]} 50. Qb2+ {[%emt 0:00:24]} (50. Qe2 $142 g5 51. hxg5+ hxg5 52. Kh2) 50... Kg6 {[%emt 0:00:41]} (50... Kf7 $142 51. Qe2 Qd5) 51. Qe2 {[%emt 0:00:30]} Qd5 {[%emt 0:03:45]} 52. h5+ {[%emt 0:01:11] [#]} Kh7 $1 {[%emt 0:00:05]} 53. g4 {[%emt 0:01:12] [#]} Qh1+ $2 {[%emt 0:02:40]} ({Better is} 53... f4 $1 $19 {( -> ...Qh1+)} 54. Qc2+ Kg8 55. Qc8+ Kf7 56. Qc7+ Ke6 57. Qxf4 e2 58. Qe3+ Qe5 59. Qb6+ Kd7 60. Qb7+ Ke8 61. Qc8+ Kf7 62. Qc4+ Ke7 63. Qb4+ Kf6) 54. Kg3 $11 {[%emt 0:00:02] The position is equal.} Qg1+ {[%emt 0:00:28]} 55. Kf4 {[%emt 0:00:58]} Qf2+ {[%emt 0:01:28]} 56. Qf3 {[%emt 0:00:01]} Qh2+ {[%emt 0:03:01]} 57. Kxe3 {[%emt 0:00:50]} Qe5+ {[%emt 0:05:14] Weighted Error Value: White=0.43/Black=0.31} 1/2-1/2

[Event "61st Mongolian-ch Open 2023"]
[Site "Khovd"]
[Date "2023.05.29"]
[Round "10.2"]
[White "Enkhnar, Enkhbaatar"]
[Black "Munkhzul, Turmunkh"]
[Result "1/2-1/2"]
[ECO "E05"]
[WhiteElo "2360"]
[BlackElo "2318"]
[Annotator "TA"]
[PlyCount "29"]
[EventDate "2023.05.22"]
[EventType "tourn"]
[EventCountry "MGL"]
[SourceTitle "playchess.com"]
[Source "ChessBase"]
[SourceQuality "1"]
[TimeControl "40/5400+30:1800+30"]

{[%evp 28,29,0,0]} 1. d4 {[%emt 0:00:06]} d5 {[%emt 0:00:07]} 2. c4 {[%emt 0:00:03]} e6 {[%emt 0:00:04]} 3. Nf3 {[%emt 0:00:05]} Nf6 {[%emt 0:00:05]} 4. g3 {[%emt 0:00:03]} Be7 {[%emt 0:00:07]} 5. Bg2 {[%emt 0:00:10]} O-O {[%emt 0:00:06]} 6. O-O {[%emt 0:00:07]} dxc4 {[%emt 0:00:06]} 7. Qc2 {[%emt 0:00:02]} a6 {[%emt 0:00:07]} 8. Qxc4 {[%emt 0:00:05]} b5 {[%emt 0:00:24]} 9. Qc2 {[%emt 0:00:04]} Bb7 {[%emt 0:00:04]} 10. Bd2 {[%emt 0:00:03]} Be4 {[%emt 0:00:05]} 11. Qc1 {[%emt 0:00:05] [#]} Bb7 $146 {[%emt 0:00:07]} ({Predecessor:} 11... c6 12. Rd1 Nbd7 13. Nc3 Bg6 14. Ne5 Nxe5 15. dxe5 Nd5 16. h4 Qb8 17. Bf4 Rd8 18. Bf3 h5 19. Ne4 Ra7 20. Ng5 Rad7 21. Kh2 c5 {½-½ Sjugirov,S (2712)-Karjakin,S (2747) Moscow Region Cup rapid 2022 (3)}) 12. Qc2 {[%emt 0:00:03]} Be4 {[%emt 0:00:04]} 13. Qc1 {[%emt 0:00:03]} Bb7 {[%emt 0:00:05]} 14. Qc2 {[%emt 0:00:05]} Be4 {[%emt 0:00:05]} 15. Qc1 {[%emt 0:00:09]} 1/2-1/2

[Event "61st Mongolian-ch Open 2023"]
[Site "Khovd"]
[Date "2023.05.29"]
[Round "10.3"]
[White "Gan-Erdene, Sugar"]
[Black "Chinguun, Sumiya"]
[Result "1-0"]
[ECO "E69"]
[WhiteElo "2420"]
[BlackElo "2298"]
[Annotator "TA"]
[PlyCount "103"]
[EventDate "2023.05.22"]
[EventType "tourn"]
[EventCountry "MGL"]
[SourceTitle "playchess.com"]
[Source "ChessBase"]
[SourceQuality "1"]
[TimeControl "40/5400+30:1800+30"]

{[%evp 22,103,28,18,27,35,49,33,44,45,80,77,70,78,57,66,96,99,91,76,141,143,144,146,123,120,158,166,161,149,157,165,197,124,193,191,194,194,181,190,227,221,263,258,297,311,316,319,327,302,291,285,302,298,396,393,414,406,474,471,453,444,438,442,437,413,569,553,540,384,512,512,481,429,491,411,381,338,1039,975,29991,29992,29992,29993]} 1. d4 {[%emt 0:00:03]} Nf6 {[%emt 0:00:04]} 2. c4 {[%emt 0:00:05]} g6 {[%emt 0:00:06]} 3. g3 {[%emt 0:00:07]} Bg7 {[%emt 0:00:05]} 4. Bg2 {[%emt 0:00:05]} d6 {[%emt 0:00:10]} 5. Nf3 {[%emt 0:00:06]} O-O {[%emt 0:00:12]} 6. O-O {[%emt 0:00:06]} Nbd7 {[%emt 0:00:31]} 7. Nc3 {[%emt 0:00:07]} e5 {[%emt 0:00:09]} 8. e4 {[%emt 0:00:12]} c6 {[%emt 0:00:30]} 9. h3 {[%emt 0:00:26]} Qa5 {[%emt 0:00:27]} 10. Re1 {[%emt 0:01:08]} exd4 {[%emt 0:00:47]} 11. Nxd4 {[%emt 0:00:04]} Ne5 {[%emt 0:00:09]} 12. Bf1 {[%emt 0:00:24]} Qb6 {[%emt 0:00:13][%cal Ob6d4] is recently more successful than 12...Re8. E69: King's Indian: Fianchetto: 6...Nbd7 7 0-0 e5 8 e4 c6 9 h3.} 13. Be3 {[%emt 0:00:21][%cal Od4b5] Black must now prevent Ndb5!} c5 $1 {[%emt 0:00:07]} (13... Qxb2 $2 14. Na4 $18) 14. Nc2 {[%emt 0:00:14]} Be6 {[%emt 0:00:17] White is slightly better.} 15. b3 {[%emt 0:00:06]} Nfd7 {[%emt 0:01:36][%cal Oe5c4]} 16. Nd5 {[%emt 0:19:58]} Bxd5 {[%emt 0:14:04]} 17. cxd5 {[%emt 0:01:28]} Nf6 {[%emt 0:05:49] [#]} 18. Bd2 $146 {[%emt 0:10:47]} ({Predecessor:} 18. f4 Ned7 19. Bf2 Rfe8 20. Qf3 Qa5 21. a4 Nxe4 22. Rxe4 Rxe4 23. Qxe4 Bxa1 24. Nxa1 {½-½ Alshameary Puente,I (2352)-Oratovsky,M (2474) POR-chT Maia 2018 (2.3)}) 18... Rae8 {[%emt 0:05:55] White now steadily converts the win.} 19. Rb1 $1 {[%emt 0:03:14]} Ned7 {[%emt 0:05:46]} 20. Bg2 {[%emt 0:02:48]} Qa6 {[%emt 0:00:30] [#]} (20... Re7 $142) 21. a4 $1 $16 {[%emt 0:00:36]} Ne5 {[%emt 0:05:52]} 22. Bf1 {[%emt 0:04:16]} Qb6 {[%emt 0:00:06]} 23. Na3 {[%emt 0:00:41]} h5 {[%emt 0:04:12]} 24. f4 {[%emt 0:18:37]} Ned7 {[%emt 0:00:32]} (24... c4+ $2 25. Be3 Qd8 26. fxe5 $18) 25. Nc4 $36 {[%emt 0:00:18][%mdl 2048] White is on the roll.} Qc7 {[%emt 0:00:18]} 26. Qf3 {[%emt 0:01:29] White is more active.} Nh7 {[%emt 0:02:09]} 27. h4 {[%emt 0:03:01]} ({Better is} 27. Kg2 $18) 27... Nb6 {[%emt 0:03:00] [#]} (27... b6 $16 28. Bh3 Bd4+ 29. Kg2 Nhf6) 28. Ba5 $1 $18 {[%emt 0:02:22]} Bd4+ {[%emt 0:03:47]} 29. Kh2 {[%emt 0:00:35]} Nf6 {[%emt 0:07:42]} 30. Bh3 {[%emt 0:00:22] Repels Ng4+} Qd8 {[%emt 0:01:42]} 31. Re2 {[%emt 0:02:24]} Kh7 {[%emt 0:08:32]} 32. Rbe1 {[%emt 0:02:08]} Kg8 {[%emt 0:02:16]} 33. Na3 {[%emt 0:05:13]} Nfd7 {[%emt 0:01:44]} 34. Nb5 {[%emt 0:06:26][%csl LRa7,LRd6]} Qf6 {[%emt 0:00:11]} 35. Nxd4 {[%emt 0:01:03]} ({Don't play} 35. Nxa7 Ra8 $18) 35... cxd4 {[%emt 0:00:23]} 36. Bxb6 {[%emt 0:00:09]} Nxb6 {[%emt 0:00:24]} 37. Qd3 {[%emt 0:00:12] Black is weak on the light squares} Qg7 {[%emt 0:00:47]} 38. a5 {[%emt 0:01:01]} Nc8 {[%emt 0:01:03]} 39. e5 {[%emt 0:00:27]} dxe5 {[%emt 0:01:48]} 40. fxe5 {[%emt 0:00:00]} Rd8 {[%emt 0:00:00]} 41. d6 {[%emt 0:03:20]} Nxd6 {[%emt 0:01:13]} 42. exd6 {[%emt 0:00:06]} Rxd6 {[%emt 0:00:10]} 43. Bg2 {[%emt 0:01:53]} Rd7 {[%emt 0:00:33]} 44. Re7 {[%emt 0:00:39]} Rfd8 {[%emt 0:00:13]} 45. Bxb7 {[%emt 0:00:38] Rxd7 is the strong threat.} Rxe7 {[%emt 0:02:22]} 46. Rxe7 {[%emt 0:00:04]} Qf6 {[%emt 0:01:12] Repels Ba6} 47. Re2 {[%emt 0:00:35]} Kg7 {[%emt 0:00:29]} 48. Bg2 {[%emt 0:00:18]} Qd6 {[%emt 0:00:19]} 49. Rf2 {[%emt 0:02:18]} g5 $2 {[%emt 0:00:53]} (49... Rd7 50. Bh3 Rd8) 50. Qf5 {[%emt 0:00:23]} gxh4 {[%emt 0:00:23]} 51. Qxf7+ {[%emt 0:00:09]} Kh8 {[%emt 0:00:06]} 52. Qxh5+ {[%emt 0:00:05] Weighted Error Value: White=0.15 (very precise) /Black=0.41} 1-0

[Event "61st Mongolian-ch Open 2023"]
[Site "Khovd"]
[Date "2023.05.29"]
[Round "10.4"]
[White "Munkhgal, Gombosuren"]
[Black "Bulgankhan Ganzorig"]
[Result "1-0"]
[ECO "E90"]
[WhiteElo "2463"]
[BlackElo "2017"]
[Annotator "TA"]
[PlyCount "71"]
[EventDate "2023.05.22"]
[EventType "tourn"]
[EventCountry "MGL"]
[SourceTitle "playchess.com"]
[Source "ChessBase"]
[SourceQuality "1"]
[TimeControl "40/5400+30:1800+30"]

{[%evp 16,71,44,48,35,14,0,6,6,12,10,12,21,12,13,0,0,12,45,30,30,27,166,163,160,153,141,139,211,200,200,109,104,107,178,179,193,186,194,133,136,110,128,137,129,124,348,340,529,507,726,749,805,797,1130,815,1029,916]} 1. d4 {[%emt 0:00:03]} Nf6 {[%emt 0:00:09]} 2. c4 {[%emt 0:00:03]} c5 {[%emt 0:00:08]} 3. d5 {[%emt 0:00:06]} g6 {[%emt 0:00:12]} 4. Nc3 {[%emt 0:00:09]} Bg7 {[%emt 0:00:23]} 5. e4 {[%emt 0:00:05]} d6 {[%emt 0:00:05]} 6. h3 {[%emt 0:00:40]} O-O {[%emt 0:00:40]} 7. Nf3 {[%emt 0:00:05]} e6 {[%emt 0:01:51]} 8. Be2 {[%emt 0:01:38]} exd5 {[%emt 0:02:05]} 9. exd5 {[%emt 0:00:05]} Bf5 {[%emt 0:05:56] E90: King's Indian: Classical: Early deviations and 6 h3.} 10. O-O {[%emt 0:00:20]} (10. g4 $5 {[%cal Rg4f5]} Bd7 11. Bf4 $14) 10... Ne4 {[%emt 0:00:25]} 11. Nxe4 {[%emt 0:03:32]} Bxe4 {[%emt 0:00:17] The position is equal.} 12. Ng5 {[%emt 0:05:00]} Bf5 {[%emt 0:03:10]} (12... Bxb2 $2 13. Nxf7 Rxf7 14. Bxb2 $18) 13. Bd3 {[%emt 0:06:35] [#]} h6 $146 {[%emt 0:09:02]} ({Predecessor:} 13... Bxd3 14. Qxd3 Nd7 15. Ne4 Re8 16. Bd2 Qb6 17. Rfe1 Qa6 18. Qb3 Ne5 19. Rac1 h6 {½-½ Roselli Mailhe,B (2433)-Strikovic,A (2507) Pretoria Capablanca GM 2018 (2)}) 14. Nf3 {[%emt 0:02:25] aiming for Bxf5.} Qf6 {[%emt 0:04:18]} 15. Bxf5 {[%emt 0:03:09]} Qxf5 {[%emt 0:00:10]} 16. Qb3 {[%emt 0:10:53]} Qd7 {[%emt 0:15:31]} 17. Bd2 {[%emt 0:01:56]} Na6 {[%emt 0:18:28]} 18. Rfe1 {[%emt 0:03:44]} b5 {[%emt 0:05:07]} 19. cxb5 $18 {[%emt 0:00:22]} ({Don't play} 19. Qxb5 $6 Qxb5 20. cxb5 Nc7 $11) 19... Nc7 {[%emt 0:00:09]} 20. a4 {[%emt 0:00:09]} Qf5 {[%emt 0:00:32]} 21. Bc3 {[%emt 0:02:04]} Bxc3 {[%emt 0:05:37]} (21... Rfe8 $16) 22. bxc3 {[%emt 0:00:22]} Nxd5 {[%emt 0:00:32]} 23. c4 {[%emt 0:07:14]} (23. Rad1 $18 Nf4 24. c4 (24. Rxd6 Rae8 $16)) 23... Nf4 $16 {[%emt 0:13:13]} 24. a5 {[%emt 0:00:45]} Qd7 {[%emt 0:07:28]} (24... h5 $16 {is a better defense.}) 25. Re4 $18 {[%emt 0:13:34]} g5 {[%emt 0:04:08]} 26. Rae1 {[%emt 0:00:23]} Ng6 {[%emt 0:02:15]} 27. Qd3 {[%emt 0:03:24]} (27. Qe3 $18) 27... Rad8 $16 {[%emt 0:00:35]} 28. Rd1 {[%emt 0:03:07][%cal Of3e5] White is more active.} Nf4 {[%emt 0:00:46]} 29. Qe3 $36 {[%emt 0:00:16][%mdl 2048] White is on the roll.} Qf5 {[%emt 0:01:16] Prevents Ne5} 30. g3 {[%emt 0:07:37]} Nxh3+ {[%emt 0:00:13]} (30... Ng6 $16 {was necessary.}) 31. Kg2 $18 {[%emt 0:00:02] [#] Hoping for Rd5.} Nxf2 {[%emt 0:00:47]} (31... d5 $142 32. cxd5 (32. Qxc5 $2 {is the wrong capture.} Qxe4 33. Qe3 Qg4 $19) 32... Rd6) 32. Kxf2 {[%emt 0:00:21] White is clearly winning.} Qh3 {[%emt 0:00:31]} 33. Rd5 {[%emt 0:02:40][%cal Od5g5] Threatens to win with Rxg5+!} f5 {[%emt 0:00:29]} 34. Re7 {[%emt 0:00:10] Qe6+ would kill now.} Rf6 {[%emt 0:00:17] [#] Inhibits Qe6+.} 35. Nxg5 $1 {[%emt 0:07:11][%mdl 512] White wants to mate with Re8+.} f4 {[%emt 0:00:32]} (35... Qh2+ 36. Ke1) 36. Nxh3 {[%emt 0:00:16] Weighted Error Value: White=0.10 (very precise) /Black=0.46} 1-0

[Event "61st Mongolian-ch Open 2023"]
[Site "Khovd"]
[Date "2023.05.29"]
[Round "10.5"]
[White "Erdene, Ganzorig"]
[Black "Munguntuul, Batkhuyag"]
[Result "1-0"]
[ECO "A09"]
[WhiteElo "2278"]
[BlackElo "2408"]
[Annotator "TA"]
[PlyCount "115"]
[EventDate "2023.05.22"]
[EventType "tourn"]
[EventCountry "MGL"]
[SourceTitle "playchess.com"]
[Source "ChessBase"]
[SourceQuality "1"]
[TimeControl "40/5400+30:1800+30"]

{[%evp 11,115,11,20,16,16,13,21,20,17,17,17,10,0,6,0,0,38,38,53,41,50,38,71,21,16,3,10,-17,18,7,26,22,133,117,133,123,130,132,141,132,210,127,223,210,257,249,266,268,322,305,388,409,460,417,454,433,501,505,687,678,808,804,1033,1029,1068,1068,991,972,1057,889,936,760,769,758,906,932,1256,1229,1422,1468,2007,2033,2639,2613,29967,29967,29965,1400,1374,1376,1322,1292,1188,1161,1385,1375,3752,2904,29963,29964,5531,5135,29970,29971,29978,6033]} 1. c4 {[%emt 0:00:03]} e6 {[%emt 0:01:02]} 2. Nf3 {[%emt 0:00:16]} d5 {[%emt 0:00:12][%cal Bd7d5,Bd5d4][%mdl 32]} 3. g3 {[%emt 0:00:11]} d4 {[%emt 0:14:19]} 4. Bg2 {[%emt 0:00:32]} c5 {[%emt 0:00:08]} 5. O-O {[%emt 0:00:37]} Nc6 {[%emt 0:00:07]} 6. d3 {[%emt 0:00:10]} Nf6 {[%emt 0:01:54]} 7. e3 {[%emt 0:01:16] A09: Réti Opening: 1 Nf3 d5 2 c4.} Bd6 {[%emt 0:04:23]} 8. exd4 {[%emt 0:00:48]} cxd4 {[%emt 0:00:02]} 9. a3 {[%emt 0:00:17] The position is equal.} a5 {[%emt 0:00:07]} 10. Bg5 {[%emt 0:01:40]} O-O {[%emt 0:04:33]} 11. Nbd2 {[%emt 0:00:11]} Be7 {[%emt 0:00:37]} 12. Bxf6 {[%emt 0:04:17]} Bxf6 {[%emt 0:00:08] [#]} 13. c5 $146 {[%emt 0:00:14]} ({Predecessor:} 13. Re1 a4 14. Rc1 Qa5 15. c5 Qb5 16. Qc2 Rd8 17. Ne4 Be7 18. Nfd2 Na5 19. Nc4 {0-1 Fontaine,Q (2313)-Hovhannisyan,M (2456) Charleroi Experts 2018 (1)}) 13... e5 {[%emt 0:13:55]} 14. Nc4 {[%emt 0:00:46]} Be6 {[%emt 0:00:06]} 15. Rc1 {[%emt 0:00:47]} Qc7 {[%emt 0:05:45]} 16. Re1 {[%emt 0:00:50]} g6 {[%emt 0:08:46]} 17. Qd2 {[%emt 0:03:14]} (17. h4 $16) 17... Bg7 {[%emt 0:14:54]} 18. Nb6 {[%emt 0:05:30]} Ra6 {[%emt 0:04:19]} 19. Qc2 {[%emt 0:16:24]} a4 {[%emt 0:02:19]} 20. Nxa4 {[%emt 0:06:15]} Na5 {[%emt 0:00:34]} 21. Nb6 {[%emt 0:00:13]} Nb3 {[%emt 0:00:10] [#] Repels b4. Black is now going downhill.} (21... Bh6 $11 22. b4 Bxc1 23. Qxc1 Nb3) 22. Ng5 $1 $16 {[%emt 0:00:42] And now Nxe6 would win. Excellent horsemanship.} Nxc1 {[%emt 0:00:21]} 23. Nxe6 {[%emt 0:00:18]} fxe6 {[%emt 0:00:02]} 24. Qxc1 {[%emt 0:00:17]} Bf6 {[%emt 0:07:35] Black is weak on the light squares} ({Less strong is} 24... Qf7 25. Qd2 $14) 25. b4 {[%emt 0:02:42][%mdl 1024] White has strong compensation. White is more active.} Kg7 {[%emt 0:01:30]} (25... Rxb6 $16 26. cxb6 Qxb6) 26. h4 {[%emt 0:06:30]} Qf7 {[%emt 0:00:31]} (26... Rxb6 $16 27. cxb6 Qxb6) 27. Re2 {[%emt 0:01:12]} h6 {[%emt 0:00:45]} 28. Nc4 {[%emt 0:00:32]} Qc7 {[%emt 0:00:54]} 29. Qd1 {[%emt 0:01:44]} Raa8 {[%emt 0:02:27]} 30. a4 {[%emt 0:01:46]} Kh8 {[%emt 0:00:51]} 31. a5 {[%emt 0:00:19]} Bg7 {[%emt 0:01:35]} 32. Nd6 {[%emt 0:01:52]} Rab8 {[%emt 0:00:04]} 33. Be4 {[%emt 0:05:33]} Rf6 {[%emt 0:00:02]} 34. Ra2 {[%emt 0:01:08]} h5 {[%emt 0:05:16]} 35. Qa4 {[%emt 0:00:23]} Rff8 {[%emt 0:04:12]} 36. Bxg6 {[%emt 0:00:24]} Bf6 {[%emt 0:00:19]} 37. Qd1 {[%emt 0:00:16]} Qg7 {[%emt 0:00:42]} 38. Qxh5+ {[%emt 0:00:17]} Kg8 {[%emt 0:00:00]} 39. Be4 {[%emt 0:00:20]} Bd8 {[%emt 0:01:32]} 40. Nc4 {[%emt 0:00:00]} Bc7 {[%emt 0:00:00]} 41. Qg6 {[%emt 0:00:59]} Qxg6 {[%emt 0:01:18]} 42. Bxg6 {[%emt 0:00:07]} Kg7 {[%emt 0:00:03]} 43. Be4 {[%emt 0:00:06]} Kf6 {[%emt 0:00:04]} 44. b5 {[%emt 0:00:08][%cal Bb4b5,Bb5b6][%mdl 32]} Rg8 {[%emt 0:00:13]} 45. b6 {[%emt 0:00:20]} Bd8 {[%emt 0:00:12]} 46. Nd6 {[%emt 0:00:19]} Be7 {[%emt 0:00:04]} 47. Nxb7 {[%emt 0:00:09]} Rxb7 {[%emt 0:00:34]} 48. Bxb7 {[%emt 0:00:08]} Bxc5 $18 {[%emt 0:00:01] KRB-KRB} 49. a6 {[%emt 0:00:18]} (49. Be4 $142 Rc8 50. b7 Rg8 51. Rc2 Ba7 52. Rc8 Kg7 53. a6 Rh8 54. Ra8) 49... Bxb6 {[%emt 0:00:01]} 50. a7 {[%emt 0:00:07]} Bxa7 {[%emt 0:00:03]} 51. Rxa7 {[%emt 0:00:22] [#] White threatens Ra8 and mate. KRB-KR} Rg7 {[%emt 0:00:01]} 52. Kf1 {[%emt 0:00:14]} Rh7 {[%emt 0:00:53]} 53. Ke2 {[%emt 0:00:07] Threatens to win with Kf3.} Rc7 {[%emt 0:00:18]} 54. Kf3 {[%emt 0:00:16] Hoping for g4.} Rh7 {[%emt 0:00:31]} 55. g4 {[%emt 0:00:07]} Rxh4 {[%emt 0:00:49]} 56. Be4 {[%emt 0:00:18] Intending Rh7 and mate.} Rh3+ {[%emt 0:00:18]} 57. Kg2 {[%emt 0:00:07]} Rh8 {[%emt 0:00:05]} 58. Rh7 {[%emt 0:00:10] Weighted Error Value: White=0.09 (flawless) /Black=0.74} (58. Kg3 $142 Rg8 59. Ra8 Rg6 60. Rf8+ Kg7 61. Bxg6 Kxf8 62. Be4 Kf7 63. g5) 1-0